[Event "Italian-ch Semifinal 2022"]
[Site "Acqui Terme"]
[Date "2022.06.15"]
[Round "1.1"]
[White "Garofalo, Simone"]
[Black "Lettieri, Giuseppe"]
[Result "0-1"]
[ECO "B11"]
[WhiteElo "2108"]
[BlackElo "2445"]
[Annotator "RC"]
[PlyCount "126"]
[EventDate "2022.06.15"]
[EventType "swiss"]
[EventCountry "ITA"]
[SourceTitle "playchess.com"]
[Source "ChessBase"]
[SourceQuality "1"]
[TimeControl "40/5400+30:1800+30"]

1. e4 {[%emt 0:00:16]} c6 {[%emt 0:00:04]} 2. Nc3 {[%emt 0:01:14]} d5 {[%emt 0:00:06]} 3. Nf3 {[%emt 0:00:46]} Bg4 {[%emt 0:01:48]} 4. h3 {[%emt 0:01:36]} Bxf3 {[%emt 0:00:06]} 5. Qxf3 {[%emt 0:00:17]} e6 {[%emt 0:00:13]} 6. Be2 {[%emt 0:06:30]} Nf6 {[%emt 0:03:28]} 7. O-O {[%emt 0:04:37]} Nxe4 {[%emt 0:14:47]} 8. Nxe4 {[%emt 0:00:37]} dxe4 {[%emt 0:00:06]} 9. Qxe4 {[%emt 0:00:15]} Qd5 {[%emt 0:00:21]} 10. Qg4 {[%emt 0:05:20]} h5 {[%emt 0:09:49]} 11. Qa4 {[%emt 0:08:07]} Qe5 {[%emt 0:16:37]} 12. Bd1 {[%emt 0:12:56]} b5 {[%emt 0:06:19]} 13. d4 {[%emt 0:09:27]} Qd6 {[%emt 0:08:23]} 14. Qb3 {[%emt 0:12:53]} Qxd4 {[%emt 0:03:09]} 15. a4 {[%emt 0:02:48]} b4 {[%emt 0:04:34]} 16. Bf3 {[%emt 0:02:13]} Qe5 {[%emt 0:09:52]} 17. g3 {[%emt 0:10:37]} g5 {[%emt 0:08:06]} 18. Bd2 {[%emt 0:05:49]} Bc5 {[%emt 0:00:25]} 19. Bg2 {[%emt 0:02:57]} h4 {[%emt 0:02:33]} 20. g4 {[%emt 0:01:55]} a5 {[%emt 0:05:54]} 21. Rae1 {[%emt 0:00:31]} Qf6 {[%emt 0:00:28]} 22. c3 {[%emt 0:04:35]} O-O {[%emt 0:01:32]} 23. Kh1 {[%emt 0:01:25]} Rd8 {[%emt 0:00:36]} 24. Bc1 {[%emt 0:01:01]} e5 {[%emt 0:00:52]} 25. Qc4 {[%emt 0:02:22]} Nd7 {[%emt 0:00:12]} 26. Be3 {[%emt 0:00:13]} Be7 {[%emt 0:01:50]} 27. cxb4 {[%emt 0:00:47]} Bxb4 {[%emt 0:00:28]} 28. Rd1 {[%emt 0:00:17]} Rac8 {[%emt 0:00:19]} 29. Be4 {[%emt 0:01:10]} Nf8 {[%emt 0:00:52]} 30. Bf5 {[%emt 0:00:32]} Rb8 {[%emt 0:00:46]} 31. Qc1 {[%emt 0:00:31]} Be7 {[%emt 0:00:09]} 32. Rxd8 {[%emt 0:01:56]} Rxd8 {[%emt 0:00:54]} 33. Rd1 {[%emt 0:00:00]} Rb8 {[%emt 0:00:39]} 34. Bd2 {[%emt 0:00:00]} Ne6 {[%emt 0:00:24]} 35. Qxc6 {[%emt 0:00:14]} Rxb2 {[%emt 0:00:24]} 36. Be3 {[%emt 0:00:58]} Nd4 {[%emt 0:00:44]} 37. Qxf6 {[%emt 0:00:32]} Bxf6 {[%emt 0:00:01]} 38. Bd7 {[%emt 0:00:38]} Kf8 {[%emt 0:01:06]} 39. Kg2 {[%emt 0:00:23]} Nc2 {[%emt 0:00:27]} 40. Kf3 {[%emt 0:00:00]} Be7 {[%emt 0:00:00]} 41. Rd5 {[%emt 0:04:11]} Nxe3 {[%emt 0:07:04]} 42. Kxe3 {[%emt 0:00:52]} Rb3+ {[%emt 0:00:12]} 43. Rd3 {[%emt 0:00:27]} Rb1 {[%emt 0:12:00]} 44. Kf3 {[%emt 0:03:49]} Bc5 {[%emt 0:00:51]} 45. Rd5 {[%emt 0:03:24]} Bd4 {[%emt 0:00:44]} 46. Rxa5 {[%emt 0:03:56]} Rb3+ {[%emt 0:05:41]} 47. Kg2 {[%emt 0:01:26]} Rb2 {[%emt 0:00:02]} 48. Bc6 {[%emt 0:02:18]} Rxf2+ {[%emt 0:01:42]} 49. Kh1 {[%emt 0:00:08]} Rc2 {[%emt 0:01:53]} 50. Be4 {[%emt 0:02:26]} Rc3 {[%emt 0:00:14]} 51. Kg2 {[%emt 0:00:34]} Rg3+ {[%emt 0:00:12]} 52. Kh2 {[%emt 0:00:33]} Bg1+ {[%emt 0:01:18]} 53. Kh1 {[%emt 0:00:09]} Bb6 {[%emt 0:00:51]} 54. Ra8+ {[%emt 0:02:47]} Ke7 {[%emt 0:00:01]} 55. Kh2 {[%emt 0:00:39]} Bg1+ {[%emt 0:01:33]} 56. Kh1 {[%emt 0:00:05]} Bf2 {[%emt 0:00:15]} 57. Kh2 {[%emt 0:03:22]} Re3 {[%emt 0:00:53]} 58. Bd5 {[%emt 0:02:28]} e4 {[%emt 0:01:58]} 59. Kg2 {[%emt 0:02:09]} Bg3 {[%emt 0:00:14]} 60. a5 {[%emt 0:03:11]} Re2+ {[%emt 0:00:28]} 61. Kg1 {[%emt 0:00:37]} e3 {[%emt 0:00:29]} 62. a6 {[%emt 0:00:53]} Re1+ {[%emt 0:00:28]} 63. Kg2 {[%emt 0:00:08]} e2 {[%emt 0:01:17]} 0-1

[Event "Italian-ch Semifinal 2022"]
[Site "Acqui Terme"]
[Date "2022.06.15"]
[Round "1.2"]
[White "Barp, Alberto"]
[Black "Perossa, Nicolas"]
[Result "1-0"]
[ECO "E69"]
[WhiteElo "2384"]
[BlackElo "2139"]
[Annotator "TA"]
[PlyCount "85"]
[EventDate "2022.06.15"]
[EventType "swiss"]
[EventCountry "ITA"]
[SourceTitle "playchess.com"]
[Source "ChessBase"]
[SourceQuality "1"]
[TimeControl "40/5400+30:1800+30"]

{[%evp 27,85,60,85,75,81,89,96,88,116,118,94,0,232,216,222,213,225,97,200,198,207,195,186,203,192,145,157,149,151,127,132,123,133,125,122,76,75,81,65,61,260,12,12,0,8,0,814,775,1958,1575,29988,29989,29989,29990,29990,29991,29992,29991,29991,1220]} 1. d4 {[%emt 0:00:36]} Nf6 {[%emt 0:00:18]} 2. c4 {[%emt 0:00:14]} g6 {[%emt 0:00:08]} 3. g3 {[%emt 0:00:31]} Bg7 {[%emt 0:00:17]} 4. Bg2 {[%emt 0:00:10]} O-O {[%emt 0:00:14]} 5. Nc3 {[%emt 0:00:05]} d6 {[%emt 0:00:09]} 6. Nf3 {[%emt 0:00:11]} c6 {[%emt 0:00:08]} 7. O-O {[%emt 0:00:12]} Nbd7 {[%emt 0:00:04]} 8. e4 {[%emt 0:01:34]} e5 {[%emt 0:01:06]} 9. Be3 {[%emt 0:00:41]} exd4 {[%emt 0:07:58]} 10. Nxd4 {[%emt 0:00:57]} Re8 {[%emt 0:01:08]} 11. h3 {[%emt 0:00:41]} Nc5 {[%emt 0:00:29]} 12. Qc2 {[%emt 0:00:24]} a5 {[%emt 0:00:53]} 13. Rad1 {[%emt 0:01:55]} Qe7 {[%emt 0:10:12]} 14. Rfe1 {[%emt 0:02:12]} Be6 {[%emt 0:05:17]} (14... Ncxe4 $2 15. Bc1 $18) 15. b3 {[%emt 0:05:09] E69: King's Indian: Fianchetto: 6...Nbd7 7 0-0 e5 8 e4 c6 9 h3.} Qc7 {[%emt 0:02:39]} 16. f4 {[%emt 0:16:44]} Bd7 {[%emt 0:05:25]} 17. Bf2 {[%emt 0:04:00] [#] White is better.} Rab8 $146 {[%emt 0:14:21]} ({Predecessor:} 17... Rad8 18. a3 Bf8 19. b4 axb4 20. axb4 Na6 21. Qb2 Bg7 22. Qb3 h5 23. Kh1 Qc8 {1-0 (91) Volkov,M (2163)-Azjargal,E (1684) Tornelo INT 2021}) 18. Nf3 {[%emt 0:11:54]} Nh5 {[%emt 0:00:41]} 19. Nd4 {[%emt 0:09:28]} ({White should play} 19. e5 $1 $16 {[%cal Re5d6]} Bf8 20. Bxc5 dxc5 21. Qf2) 19... b5 $2 {[%emt 0:34:38]} (19... Nf6 $1 $11) 20. cxb5 $18 {[%emt 0:02:53]} cxb5 {[%emt 0:00:30]} 21. Nd5 {[%emt 0:02:17]} Qc8 {[%emt 0:03:23] [#]} 22. Kh2 {[%emt 0:05:39]} (22. e5 $1 $18 {[%cal Re5d6] is the precise move to win.} dxe5 23. fxe5) 22... Be6 {[%emt 0:04:59]} (22... Nf6 $16) 23. Nxe6 {[%emt 0:10:34]} fxe6 {[%emt 0:01:39]} 24. Ne3 {[%emt 0:00:08]} Qc7 {[%emt 0:04:00]} 25. Ng4 {[%emt 0:00:31]} Rbc8 {[%emt 0:01:02]} 26. e5 {[%emt 0:02:02] Inhibits Nf6.} (26. Rc1 $18) 26... d5 $16 {[%emt 0:01:12]} 27. Rc1 {[%emt 0:00:07][%cal Rc2c5] White is more active.} Bf8 {[%emt 0:00:29]} 28. Bd4 $36 {[%emt 0:01:16][%mdl 2048] Black is under strong pressure.} Qd7 {[%emt 0:00:39]} 29. Qe2 {[%emt 0:01:04] Against Ne4} ({Of course not} 29. Bxc5 $6 Bxc5 30. Qd3 Bb4 $11) 29... a4 {[%emt 0:00:29]} 30. bxa4 {[%emt 0:06:27]} Nxa4 {[%cal Bc5a4,Ba4c3,Bc3e4][%mdl 32]} 31. Rxc8 {[%emt 0:00:15]} ({Better is} 31. Qe3) 31... Rxc8 32. Nf6+ {[%emt 0:15:39]} Nxf6 {[%emt 0:00:38]} 33. exf6 {[%emt 0:00:30] Black must now prevent Qe5.} Kf7 $2 {[%emt 0:01:03] [#]} (33... Rc4 $14 34. Qe5 Kf7) 34. h4 $2 {[%emt 0:00:00]} ({White has to play} 34. f5 $1 $18 {[%cal Rf5e6]} exf5 35. Qf3) 34... Nc3 $1 $11 {[%emt 0:00:45]} 35. Qd3 {[%emt 0:00:00] The board is on fire.} Ne4 {[%emt 0:00:29]} 36. Be5 {[%emt 0:00:00]} Qc6 $2 {[%emt 0:00:35][%mdl 8192]} (36... Nxf6 $11 37. Bxf6 Kxf6) 37. Rxe4 $18 {[%emt 0:00:00]} ({Not} 37. Bxe4 dxe4 38. Qd4 (38. Rxe4 Qc2+ 39. Qe2 Rc4 $11) (38. Qxe4 Qxe4 39. Rxe4 Rc2+ 40. Kh3 Rxa2 $11) 38... h5 $14) 37... dxe4 {[%emt 0:00:09]} 38. Bxe4 {[%emt 0:00:00]} Qe8 {[%emt 0:00:28]} 39. h5 {[%emt 0:00:00] White mates.} Kg8 {[%emt 0:00:52]} 40. hxg6 {[%emt 0:00:00]} hxg6 {[%emt 0:00:00]} 41. Bxg6 {[%emt 0:00:00] A strong pair of Bishops.} Rd8 {[%emt 0:01:07]} 42. f7+ {[%emt 0:00:00]} Qxf7 {[%emt 0:00:26]} 43. Bxf7+ {[%emt 0:00:00] Weighted Error Value: White=0.42/Black=0.51} 1-0

[Event "Italian-ch Semifinal 2022"]
[Site "Acqui Terme"]
[Date "2022.06.15"]
[Round "1.3"]
[White "Caprino, Marco"]
[Black "Genocchio, Daniele"]
[Result "0-1"]
[ECO "B12"]
[WhiteElo "2071"]
[BlackElo "2365"]
[Annotator "TA"]
[PlyCount "102"]
[EventDate "2022.06.15"]
[EventType "swiss"]
[EventCountry "ITA"]
[SourceTitle "playchess.com"]
[Source "ChessBase"]
[SourceQuality "1"]
[TimeControl "40/5400+30:1800+30"]

{[%evp 9,102,-2,1,-39,-35,-37,-42,-36,4,0,39,8,6,-14,0,0,0,-52,-45,-34,-43,-56,-40,-59,-58,-68,-50,-70,-55,-65,-24,-49,-9,-19,-15,-12,15,-2,-24,0,0,0,9,0,0,0,0,-20,69,0,45,41,22,5,37,-174,-174,-185,-193,-195,-187,-179,-172,-194,-163,-266,-259,-311,-221,-277,-220,-306,-314,-281,-293,-310,-297,-278,-252,-318,-315,-403,-403,-430,-414,-458,-450,-443,-440,-857,-850,-1104,-927,-2127,-1964]} 1. e4 {[%emt 0:00:03]} c6 {[%emt 0:04:18]} 2. d4 {[%emt 0:01:29]} d5 {[%emt 0:00:05]} 3. f3 {[%emt 0:00:20]} e6 {[%emt 0:01:39]} 4. Nc3 {[%emt 0:00:30]} Bb4 {[%emt 0:00:07]} 5. Qd3 {[%emt 0:05:40]} b6 {[%emt 0:03:55]} 6. a3 {[%emt 0:02:07] B12: Caro-Kann: Advance Variation.} Ba6 {[%emt 0:02:18]} 7. Qe3 {[%emt 0:00:05] [#]} Bxf1 $146 {[%emt 0:01:49]} ({Predecessor:} 7... Bxc3+ 8. Qxc3 Bxf1 9. Kxf1 Ne7 10. Bg5 O-O 11. g4 Nd7 12. e5 c5 13. f4 Rc8 {0-1 (23) Fevolden,M-Hole,O (2386) Oslo 2010}) 8. Kxf1 {[%emt 0:00:18] Black is slightly better.} Bf8 {[%emt 0:10:10]} (8... Bxc3 $5 9. Qxc3 dxe4 $11) 9. Nge2 {[%emt 0:04:45]} Ne7 {[%emt 0:04:36]} 10. Bd2 {[%emt 0:02:28]} Nd7 {[%emt 0:00:45]} 11. Be1 {[%emt 0:02:45]} g6 {[%emt 0:03:24]} 12. Bh4 {[%emt 0:05:27]} Bg7 {[%emt 0:01:15]} 13. Bg5 {[%emt 0:02:25]} (13. Kf2 $11) 13... h6 $15 {[%emt 0:12:22]} 14. Bf4 {[%emt 0:00:23]} dxe4 {[%emt 0:03:10]} 15. Nxe4 {[%emt 0:02:33]} O-O {[%emt 0:01:36][%cal Oc6c5]} 16. Rd1 {[%emt 0:01:56]} (16. Bxh6 $2 Nf5 17. Qc3 Bxh6 $19) 16... Nd5 {[%emt 0:09:31]} 17. Qc1 {[%emt 0:00:22]} f5 {[%emt 0:05:19]} 18. Nf2 {[%emt 0:00:26]} Nxf4 {[%emt 0:05:11]} 19. Qxf4 {[%emt 0:02:08]} Nf6 {[%emt 0:05:14]} (19... Qe7 $5 {[%cal Re6e5]}) 20. g3 {[%emt 0:03:32]} Nd5 {[%emt 0:18:24]} 21. Qc1 {[%emt 0:01:04]} Qg5 {[%emt 0:00:59] [#] ...Ne3+ is the strong threat.} 22. f4 {[%emt 0:04:26]} Qh5 {[%emt 0:00:22]} 23. c4 {[%emt 0:00:32]} Nf6 {[%emt 0:02:02]} 24. Qe3 {[%emt 0:00:41]} c5 {[%emt 0:01:19]} 25. Kg2 {[%emt 0:00:58]} (25. Qxe6+ $2 Kh8 26. Qe3 Rfe8 $19) 25... Rae8 {[%emt 0:00:59]} 26. dxc5 {[%emt 0:10:48]} bxc5 {[%emt 0:00:05]} 27. Rd2 {[%emt 0:02:19]} e5 {[%emt 0:02:04][%cal Be6e5,Be5e4][%mdl 32]} 28. Qxc5 {[%emt 0:02:56]} (28. fxe5 $5 {[%cal Re2f4]} g5 29. Rf1 $11 (29. Qxc5 Ne4 $11)) 28... Rc8 {[%emt 0:00:36]} (28... e4 29. Qe3 $14) (28... g5 $1 $11 29. fxg5 (29. fxe5 Ne4 $11) 29... hxg5) 29. Qxa7 {[%emt 0:04:11]} ({Avoid the trap} 29. Qxe5 $2 Rfe8 30. g4 Qh4 $19) ({White should try} 29. Qe3 $1 $14) 29... e4 {[%emt 0:00:47] [#] aiming for ...Qf3+.} 30. Qe3 {[%emt 0:01:34] Prevents Qf3+.} (30. Nd4 Rf7 31. Qa6 Rd8 $19) 30... Rxc4 {[%emt 0:00:01]} 31. Qb3 {[%emt 0:00:13]} Rfc8 {[%emt 0:00:04]} (31... Kh7 $5) 32. Rc1 $2 {[%emt 0:00:19] Loses the game.} (32. Rhd1 $14 {keeps the upper hand.}) 32... Qf3+ $1 $19 {[%emt 0:00:08]} 33. Qxf3 {[%emt 0:00:36]} exf3+ {[%emt 0:00:02]} 34. Kxf3 {[%emt 0:00:12] And now Rxc4 would win.} Rxc1 {[%emt 0:00:02]} 35. Nxc1 {[%emt 0:00:08]} Rxc1 {[%emt 0:00:02]} 36. a4 {[%emt 0:01:04]} Kf7 {[%emt 0:02:05]} 37. Ke2 {[%emt 0:03:11]} (37. Nd3 $142 Rf1+ 38. Rf2) 37... Ra1 {[%emt 0:00:33]} 38. b3 {[%emt 0:00:22]} g5 {[%emt 0:01:22]} 39. Kd3 {[%emt 0:01:16]} Bf8 {[%emt 0:00:28]} 40. Kc4 {[%emt 0:00:00]} Rc1+ {[%emt 0:00:00]} 41. Kb5 {[%emt 0:01:15]} Rc5+ {[%emt 0:01:17]} 42. Ka6 {[%emt 0:00:28]} Rc3 {[%emt 0:00:42]} 43. Rd3 {[%emt 0:07:12]} Rc2 {[%emt 0:01:15]} 44. fxg5 {[%emt 0:00:20]} hxg5 {[%emt 0:00:20]} ({And not} 44... Rxf2 45. gxf6 Kxf6 46. Kb5 $17) 45. Rf3 {[%emt 0:00:28]} Ke6 {[%emt 0:04:01]} 46. Re3+ {[%emt 0:01:59]} Kd5 {[%emt 0:01:56]} 47. Rd3+ {[%emt 0:00:55]} Ke5 {[%emt 0:00:44] Black is clearly winning.} 48. Nd1 {[%emt 0:03:36]} Bc5 {[%emt 0:07:37] Threatens to win with ...Nd5.} 49. Kb5 {[%emt 0:01:16]} (49. Rc3 $142 Rxc3 50. Nxc3) 49... Bd4 {[%emt 0:00:50] Hoping for ...Ke4.} 50. Ne3 {[%emt 0:01:03]} Rc5+ {[%emt 0:05:03]} 51. Kb4 {[%emt 0:02:36]} Ke4 {[%emt 0:00:37][%csl LRd3,LRe3] Weighted Error Value: White=0.57/Black=0.18 (very precise)} 0-1

[Event "Italian-ch Semifinal 2022"]
[Site "Acqui Terme"]
[Date "2022.06.15"]
[Round "1.4"]
[White "Lumachi, Gabriele"]
[Black "Pegno, Mattia"]
[Result "1-0"]
[ECO "D43"]
[WhiteElo "2347"]
[BlackElo "2065"]
[Annotator "TA"]
[PlyCount "71"]
[EventDate "2022.06.15"]
[EventType "swiss"]
[EventCountry "ITA"]
[SourceTitle "playchess.com"]
[Source "ChessBase"]
[SourceQuality "1"]
[TimeControl "40/5400+30:1800+30"]

{[%evp 9,71,0,0,7,30,27,36,23,18,15,144,37,91,6,66,36,37,31,33,31,16,-25,-35,-26,0,-33,14,8,12,0,22,11,14,28,26,16,24,24,31,24,106,77,108,105,194,192,349,322,301,312,860,845,766,495,1239,1227,1529,1537,29983,29984,29978,29979,6660,5297]} 1. d4 {[%emt 0:03:17]} d5 {[%emt 0:00:12]} 2. c4 {[%emt 0:00:08]} e6 {[%emt 0:00:11]} 3. Nf3 {[%emt 0:00:20]} Nf6 {[%emt 0:00:15]} 4. Nc3 {[%emt 0:00:09]} c6 {[%emt 0:00:46]} 5. Qd3 {[%emt 0:00:38]} Be7 {[%emt 0:20:53]} 6. e4 {[%emt 0:00:30][%cal Be2e4,Be4e5][%mdl 32] D43: Semi-Slav: 5 Bg5 h6.} O-O {[%emt 0:00:28] [#]} 7. e5 $146 {[%emt 0:01:36]} ({Predecessor:} 7. a3 b6 8. b3 Ba6 9. e5 Nfd7 10. h4 f6 11. exf6 Nxf6 12. Bg5 c5 13. Bxf6 Rxf6 {0-1 (49) Seidl,S (2212)-Tuma,J (2326) Czech Republic 2013}) 7... Nfd7 {[%emt 0:00:16]} 8. h4 {[%emt 0:00:11] next Ng5 is good for White. White is slightly better.} dxc4 {[%emt 0:17:57]} 9. Qxc4 {[%emt 0:00:04]} h6 {[%emt 0:11:06] [#] Against Bg5} (9... c5 $11 {remains equal.}) 10. Be2 {[%emt 0:03:00] White is more active.} (10. Rh3 $1 $16) 10... b5 {[%emt 0:08:27]} ({Black should try} 10... c5 $14) 11. Qb3 {[%emt 0:00:06]} (11. Qd3 $16) 11... b4 {[%emt 0:03:54]} (11... c5 $11) 12. Ne4 {[%emt 0:00:17] Black must now prevent Rh3.} (12. Na4 $5 {[%cal Rh1h3]}) 12... c5 $1 {[%emt 0:00:57]} 13. Nxc5 {[%emt 0:13:29]} Nxc5 {[%emt 0:05:17]} 14. dxc5 {[%emt 0:00:05]} Bxc5 {[%emt 0:01:42]} 15. Be3 {[%emt 0:00:34]} (15. Ng5 {feels hotter.} Na6 16. Qg3 Kh8 17. Ne4) 15... Bxe3 {[%emt 0:03:07]} 16. Qxe3 {[%emt 0:00:04]} Qb6 {[%emt 0:01:58]} 17. Rc1 {[%emt 0:13:28]} Qxe3 {[%emt 0:02:21]} (17... Bb7 $15 {feels stronger.}) 18. fxe3 $11 {[%emt 0:00:04]} Bb7 {[%emt 0:00:52]} 19. Rc7 {[%emt 0:03:28]} Be4 {[%emt 0:12:47]} 20. h5 {[%emt 0:18:10]} a5 {[%emt 0:04:22]} 21. Rh4 {[%emt 0:00:23]} Bd5 {[%emt 0:01:26]} 22. a3 {[%emt 0:00:18]} bxa3 {[%emt 0:00:26]} 23. bxa3 {[%emt 0:00:13]} Na6 {[%emt 0:00:39]} 24. Rc3 {[%emt 0:00:06]} Rfb8 {[%emt 0:00:50]} (24... Bb7 $11) 25. Ra4 $16 {[%emt 0:00:45]} Rb1+ {[%emt 0:00:56]} 26. Kf2 {[%emt 0:00:13]} Rb6 {[%emt 0:00:53]} (26... Rb2 $16) 27. Rxa5 $18 {[%emt 0:00:16]} g5 $2 {[%emt 0:00:29]} (27... Rb2 28. Nd4 Kf8) 28. Nh2 {[%emt 0:02:08]} Kg7 {[%emt 0:00:25]} (28... Rb2 $2 29. Ng4 Kg7 30. Nf6 $18) 29. Ng4 {[%emt 0:00:17]} Nc7 $2 {[%emt 0:00:37]} (29... Rb2 $2 30. Nf6 Bb7 31. Rb5 Rxb5 32. Bxb5 $18) (29... Bb7 30. Nf6 Rb2) 30. Rxa8 {[%emt 0:00:18]} Nxa8 {[%emt 0:00:06]} 31. Nf6 {[%emt 0:00:10] [#] Rc8 would kill now.} Bc6 {[%emt 0:00:30]} (31... Rb2 {leads to mate.} 32. Rc8 Rxe2+ 33. Kxe2) (31... Rb8 $142 32. a4 Nb6) 32. a4 {[%emt 0:01:01] aiming for a5.} Bb7 {[%emt 0:00:29]} 33. Bb5 {[%emt 0:00:42]} g4 {[%emt 0:00:47]} 34. Rc4 {[%emt 0:00:23]} g3+ {[%emt 0:00:37]} 35. Kxg3 {[%emt 0:00:06]} Kf8 {[%emt 0:00:31]} 36. Nd7+ {[%emt 0:00:31] Weighted Error Value: White=0.28 (precise) /Black=0.64} 1-0

[Event "Italian-ch Semifinal 2022"]
[Site "Acqui Terme"]
[Date "2022.06.15"]
[Round "1.5"]
[White "Miotto, Alberto"]
[Black "Carnicelli, Valerio"]
[Result "0-1"]
[ECO "E66"]
[WhiteElo "2039"]
[BlackElo "2319"]
[Annotator "TA"]
[PlyCount "88"]
[EventDate "2022.06.15"]
[EventType "swiss"]
[EventCountry "ITA"]
[SourceTitle "playchess.com"]
[Source "ChessBase"]
[SourceQuality "1"]
[TimeControl "40/5400+30:1800+30"]

{[%evp 17,88,19,10,0,6,-3,15,-7,-4,-26,-16,-13,-7,-15,-4,-13,-18,-57,-53,-77,0,0,0,-27,-7,-45,0,-24,-26,-133,-138,-132,-131,-134,-136,-142,-88,-92,-43,-48,-46,-72,-5,-2,0,-87,-88,-110,-108,-108,-113,-107,-108,-246,-222,-372,-377,-455,-455,-1247,8,-1176,-447,-447,-445,-377,0,-370,-347,-441,-432,-445,-334]} 1. d4 {[%emt 0:00:04]} Nf6 {[%emt 0:00:44]} 2. c4 {[%emt 0:00:12]} g6 {[%emt 0:00:04]} 3. Nc3 {[%emt 0:00:05]} Bg7 {[%emt 0:00:04]} 4. Nf3 {[%emt 0:00:07]} O-O {[%emt 0:00:04]} 5. g3 {[%emt 0:00:05]} d6 {[%emt 0:00:03]} 6. Bg2 {[%emt 0:00:12]} c5 {[%emt 0:00:07]} 7. O-O {[%emt 0:00:46]} Nc6 {[%emt 0:00:03]} 8. d5 {[%emt 0:01:38]} Na5 {[%emt 0:00:16]} 9. Nd2 {[%emt 0:05:23]} e6 {[%emt 0:00:19]} 10. Qc2 {[%emt 0:04:12] E66: King's Indian: Fianchetto: 6...c5 7 0-0 Nc6 8 d5.} Re8 {[%emt 0:00:23]} 11. Rb1 {[%emt 0:11:26]} Rb8 {[%emt 0:07:29]} (11... exd5 {is interesting.} 12. cxd5 b5 13. Nxb5 Rxe2 14. b4 cxb4 15. Rxb4 Bf5) 12. a3 {[%emt 0:05:13] [#] Black must now prevent b4. The position is equal.} exd5 {[%emt 0:02:46]} 13. cxd5 {[%emt 0:00:41] b4 is the strong threat.} c4 $1 {[%emt 0:07:40]} 14. b4 {[%emt 0:15:28]} cxb3 $1 {[%emt 0:00:15]} 15. Nxb3 {[%emt 0:00:09] [#]} Bd7 $146 {[%emt 0:11:31]} (15... Bf5 $5 {[%cal Rf5c2]} 16. e4 Bd7 $11) ({Predecessor:} 15... Bf5 16. e4 Bd7 17. Qd3 Ng4 18. Nxa5 Qxa5 19. Nb5 Qb6 20. h3 Nf6 21. Bf4 {0-1 (21) Pares Vives,N (2467)-Le Page,C (2209) ICCF email 2008}) 16. Nxa5 {[%emt 0:05:38]} Qxa5 {[%emt 0:07:52]} 17. Bb2 {[%emt 0:01:23]} (17. Rb3 {is more complex.} Ng4 18. Ne4 Ba4 19. Bf4) 17... Rbc8 {[%emt 0:02:19] Threatens to win with ...Bf5.} 18. Qd3 {[%emt 0:14:37]} Qa6 {[%emt 0:07:43] Black is more active.} (18... Rc5 $17) 19. Qxa6 $11 {[%emt 0:09:22]} bxa6 {[%emt 0:00:20]} 20. h3 {[%emt 0:06:01]} Rc7 {[%emt 0:16:24]} 21. e3 {[%emt 0:10:18]} Rec8 {[%emt 0:06:39]} 22. Ne2 {[%emt 0:01:12]} Bf5 {[%emt 0:08:57]} 23. e4 {[%emt 0:00:08]} (23. Rbd1 $1 $11) 23... Bxe4 $17 {[%emt 0:02:01]} ({Weaker is} 23... Nxe4 24. Bxg7 Kxg7 25. g4 $15) 24. Bxe4 {[%emt 0:00:13]} Nxe4 {[%emt 0:00:04]} 25. Bxg7 {[%emt 0:00:07]} Kxg7 {[%emt 0:00:17]} 26. Rb4 {[%emt 0:00:24]} Nf6 {[%emt 0:02:24]} (26... Re7 $142 {And now ...Nd2 would win.} 27. Nf4 Nc3) 27. Ra4 {[%emt 0:01:34]} Re8 {[%emt 0:08:59]} (27... Rb7 $17 28. Rxa6 Rc2) 28. Nf4 $15 {[%emt 0:03:14]} Re5 {[%emt 0:01:04]} 29. Rxa6 {[%emt 0:02:16]} g5 {[%emt 0:00:05]} (29... Nxd5 $17 30. Nd3 (30. Rxd6 Nxf4 31. gxf4 Rf5 $17) 30... Re6) 30. Ng2 $11 {[%emt 0:00:45]} Ne4 {[%emt 0:06:12]} 31. Ne3 {[%emt 0:01:38] [#]} (31. Re1 $11 {keeps the balance.}) 31... Nxg3 $1 $17 {[%emt 0:00:37]} 32. Re1 {[%emt 0:00:52]} (32. Rd1 Ne2+) 32... Nf5 $36 {[%emt 0:01:25][%mdl 2048] Black is in control.} ({And not} 32... Ne4 33. Ng4 Ree7 34. Rc6 $15) 33. Nxf5+ {[%emt 0:00:23]} Rxf5 {[%emt 0:00:02]} 34. Rxd6 {[%emt 0:00:13][%mdl 4096] Endgame KRR-KRR} Rc2 {[%emt 0:00:28] Prevents Re2.} 35. Rd7 {[%emt 0:01:28]} (35. Rf1 $17) 35... Rfxf2 $19 {[%emt 0:01:11]} 36. Ree7 {[%emt 0:00:09]} (36. Rxa7 {keeps fighting.} Rg2+ 37. Kh1) 36... Kg6 {[%emt 0:00:32]} 37. Rxa7 {[%emt 0:00:24]} Rg2+ {[%emt 0:00:54]} 38. Kf1 {[%emt 0:00:20]} (38. Kh1 $142 f6 39. Re3) 38... Rcf2+ {[%emt 0:00:07]} 39. Ke1 {[%emt 0:00:05]} Ra2 {[%emt 0:00:13]} (39... Rh2 $142 {( -> ...Ra2)} 40. Kd1 Ra2 41. Ra6+ Kh5) 40. Kf1 {[%emt 0:00:00]} Rgf2+ {[%emt 0:00:00]} 41. Kg1 {[%emt 0:00:54]} Rg2+ {[%emt 0:06:26]} 42. Kf1 {[%emt 0:01:30]} Rgd2 {[%emt 0:00:06]} 43. Ra6+ {[%emt 0:05:24]} f6 {[%emt 0:00:55]} 44. d6 {[%emt 0:05:48]} h5 {[%emt 0:01:16] Weighted Error Value: White=0.41/Black=0.45} 0-1